bitfinex-derivatives/quotes_SOLF0:USTF0_20220110
["timestamp","ask_amount","ask_price","bid_price","bid_amount"]
[1641852493730,6.657,135.47,135.39,2.53035705]
[1641852493930,19.76124013,135.5,135.39,2.53035705]
[1641852494129,4.17996958,135.5,135.39,6.53035705]
[1641852494530,4.17996958,135.5,135.41,4.0]
[1641852494730,4.17996958,135.5,135.41,11.196]
[1641852494931,43.24606055,135.51,135.43,27.66479]
[1641852496933,2.70355801,135.5,135.44,6.50373511]
[1641852497634,2.70355801,135.5,135.47,4.0]
[1641852497835,15.58127055,135.52,135.48,4.0]
[1641852498036,15.58127055,135.52,135.5,4.0]
[1641852498236,15.58127055,135.52,135.5,12.857]
[1641852498634,41.42941438,135.55,135.5,8.857]
[1641852498834,15.58127055,135.57,135.5,8.857]
[1641852499034,15.58127055,135.57,135.52,27.66479]
[1641852499234,15.58127055,135.57,135.52,31.66479]
[1641852499735,15.58127055,135.57,135.53,4.0]
[1641852499936,15.58127055,135.59,135.52,31.66479]
[1641852500137,15.58127055,135.59,135.52,27.66479]
[1641852500636,21.48179525,135.59,135.5,27.66479]
[1641852500843,28.04179525,135.59,135.5,27.66479]
[1641852501045,27.66479,135.57,135.5,27.66479]
[1641852501241,27.66479,135.57,135.46,43.24606055]
[1641852501242,27.66479,135.57,135.46,47.24606055]
[1641852501444,27.66479,135.57,135.47,4.0]
[1641852501643,27.66479,135.57,135.49,4.0]
[1641852502545,28.04179525,135.59,135.49,4.0]
[1641852502744,6.56,135.59,135.49,4.0]
[1641852503143,6.56,135.59,135.53,1.99579219]
[1641852503445,83.49677055,135.6,135.53,1.99579219]
[1641852503843,16.20430435,135.58,135.53,1.99579219]
[1641852506646,16.20430435,135.58,135.49,31.66479]
[1641852507448,6.273,135.59,135.49,31.66479]
[1641852507649,6.273,135.59,135.5,4.0]
[1641852507849,6.273,135.59,135.49,27.66479]
[1641852507850,6.273,135.59,135.49,31.66479]
[1641852509150,6.273,135.59,135.49,59.32958]
[1641852509350,60.3655821,135.61,135.49,59.32958]
[1641852509549,128.5465821,135.61,135.49,59.32958]
[1641852509951,128.5465821,135.61,135.5,4.0]
[1641852510151,4.17833838,135.57,135.5,4.0]
[1641852510553,4.17833838,135.57,135.5,5.99665347]
[1641852511151,4.17833838,135.57,135.52,27.66479]
[1641852513753,4.17834042,135.56,135.52,27.66479]
[1641852513954,4.17834042,135.56,135.53,4.0]
[1641852514153,4.042e-05,135.56,135.53,12.772]
[1641852514553,4.042e-05,135.56,135.54,4.0]
[1641852515153,4.042e-05,135.56,135.55,27.66479]
[1641852517556,15.58127055,135.63,135.55,27.66479]
[1641852518656,4.17757252,135.59,135.55,30.49637032]
[1641852522058,12.02580367,135.62,135.55,27.66479]
[1641852522258,4.17814264,135.58,135.56,2.83214072]
[1641852525458,15.58127055,135.61,135.52,27.66479]
[1641852526059,4.17803835,135.57,135.52,27.66479]
[1641852526459,4.17803835,135.57,135.51,27.66479]
[1641852526660,10.0791439,135.57,135.47,15.58127055]
[1641852526962,10.0791439,135.57,135.46,15.58127055]
[1641852527159,10.0791439,135.57,135.48,27.66479]
[1641852528162,25.66041445,135.57,135.48,27.66479]
[1641852529362,21.4823761,135.57,135.53,2.87443426]
[1641852529563,5.90110555,135.57,135.53,2.87443426]
[1641852529762,4.17886155,135.56,135.53,2.87443426]
[1641852532867,4.17886155,135.56,135.49,72.9785]
[1641852533065,4.17886155,135.56,135.49,77.69709668]
[1641852533266,4.17886155,135.56,135.5,4.0]
[1641852533465,43.24606055,135.58,135.51,4.0]
[1641852533665,4.17879051,135.56,135.51,4.0]
[1641852534966,4.17879051,135.56,135.51,5.844]
[1641852536167,4.17879051,135.56,135.54,4.0]
[1641852536369,4.17879051,135.56,135.54,13.003]
[1641852537069,27.66479,135.58,135.54,13.003]
[1641852537269,4.17810204,135.55,135.54,13.003]
[1641852537468,27.66479,135.58,135.54,13.003]
[1641852540271,27.66479,135.58,135.55,6.8736762]
[1641852540673,27.66479,135.58,135.56,4.0]
[1641852541874,15.58127055,135.6,135.56,4.0]
[1641852542074,4.17788489,135.57,135.56,4.0]
[1641852542273,4.17788489,135.57,135.55,6.8736762]
[1641852543974,4.17788489,135.57,135.56,2.8735992]
[1641852545676,11.79993617,135.6,135.56,2.8735992]
[1641852545877,27.66479,135.58,135.56,2.8735992]
[1641852546377,15.58127055,135.57,135.56,2.8735992]
[1641852547182,18.28789298,135.57,135.48,25.48617902]
[1641852547783,18.28789298,135.57,135.56,3.70914763]
[1641852548183,15.58127055,135.57,135.56,3.70914763]
[1641852548984,18.28789298,135.57,135.56,3.70914763]
[1641852549284,18.28789298,135.57,135.49,31.66479]
[1641852549687,6.88550932,135.57,135.49,31.66479]
[1641852550085,2.70662243,135.56,135.5,2.50454814]
[1641852550585,2.70662243,135.56,135.5,6.50454814]
[1641852550789,2.70662243,135.56,135.5,79.11804814]
[1641852550986,2.70662243,135.56,135.51,4.0]
[1641852551387,2.70662243,135.56,135.5,91.91975312]
[1641852551587,2.70662243,135.56,135.5,90.07575312]
[1641852551988,2.70662243,135.56,135.5,87.57120498]
[1641852552188,2.70662243,135.56,135.5,78.51720498]
[1641852552587,2.70662243,135.56,135.51,2.50489661]
[1641852553087,4.17865431,135.55,135.51,5.44907336]
[1641852554091,4.17865431,135.55,135.51,2.94417675]
[1641852556389,15.58127055,135.58,135.48,87.33237055]
[1641852556591,4.17767945,135.54,135.52,2.94320195]
[1641852559897,3.32449281,135.51,135.46,15.58127055]
[1641852560095,4.17767945,135.54,135.46,15.58127055]
[1641852560296,12.066,135.55,135.46,15.58127055]
[1641852560495,4.0,135.54,135.53,2.36854554]
[1641852560696,4.0,135.54,135.45,18.08616128]
[1641852560897,27.66479,135.52,135.45,18.08616128]
[1641852561097,33.67279,135.52,135.45,18.08616128]
[1641852561697,33.67279,135.52,135.45,89.17616128]
[1641852562299,33.67279,135.52,135.45,73.59489073]
[1641852563098,33.67279,135.52,135.46,2.50489073]
[1641852563299,27.66479,135.52,135.46,2.50489073]
[1641852563500,19.58127055,135.56,135.46,2.50489073]
[1641852563700,15.58127055,135.56,135.46,2.50489073]
[1641852563902,15.58127055,135.56,135.5,4.0]
[1641852564102,2.70166016,135.55,135.5,13.178]
[1641852564303,2.70166016,135.55,135.51,4.0]
[1641852564503,2.70166016,135.55,135.5,15.022]
[1641852564705,2.70166016,135.55,135.51,4.0]
[1641852564908,2.70166016,135.55,135.52,27.66479]
[1641852565506,2.70166016,135.55,135.52,31.66479]
[1641852565708,15.58127055,135.56,135.52,31.66479]
[1641852565908,2.70166016,135.57,135.52,31.66479]
[1641852566307,2.70166016,135.57,135.53,4.0]
[1641852566607,2.70166016,135.57,135.56,4.0]
[1641852566809,2.70166016,135.57,135.56,12.0]
[1641852567008,15.58127055,135.59,135.56,12.0]
[1641852567609,10.67367186,135.61,135.57,4.0]
[1641852568212,15.6042696,135.63,135.57,4.0]
[1641852568412,15.6042696,135.63,135.58,1.843]
[1641852568813,15.6042696,135.63,135.58,5.843]
[1641852569013,15.6042696,135.63,135.58,1.843]
[1641852569214,96.75899438,135.66,135.58,1.843]
[1641852569413,55.32958,135.66,135.57,21.843]
[1641852570015,55.32958,135.66,135.58,4.0]
[1641852571415,55.32958,135.66,135.58,5.25119116]
[1641852572519,27.66479,135.66,135.58,5.25119116]
[1641852573618,27.66479,135.66,135.58,11.15175793]
[1641852574917,27.66479,135.66,135.59,1.25111539]
[1641852575118,27.66479,135.66,135.59,7.69811539]
[1641852575316,31.66479,135.66,135.59,7.69811539]
[1641852575517,10.07347522,135.65,135.59,7.69811539]
[1641852575718,4.0,135.64,135.52,1.843]
[1641852575917,5.89890969,135.62,135.51,8.50086212]
[1641852576921,14.95690969,135.62,135.51,8.50086212]
[1641852577120,27.66479,135.61,135.51,36.16565212]
[1641852577723,27.66479,135.61,135.51,27.66479]
[1641852578122,5.89988935,135.6,135.51,27.66479]
[1641852578522,9.89988935,135.6,135.51,27.66479]
[1641852579521,17.69688935,135.6,135.49,27.66479]
[1641852579721,9.90079341,135.58,135.49,27.66479]
[1641852579923,9.90079341,135.58,135.43,43.27341438]
[1641852580122,4.0,135.54,135.52,0.98998552]
[1641852580324,13.132,135.54,135.43,41.42941438]
[1641852580724,4.0,135.53,135.43,41.42941438]
[1641852580925,13.132,135.54,135.43,41.42941438]
[1641852581223,31.66479,135.51,135.42,37.7766734]
[1641852581424,4.0,135.5,135.42,37.7766734]
[1641852581623,9.90410102,135.5,135.42,37.7766734]
[1641852581924,9.90410102,135.5,135.42,27.66479]
[1641852582123,5.90410102,135.5,135.42,27.66479]
[1641852582323,4.0,135.48,135.42,27.66479]
[1641852582523,9.952,135.48,135.42,27.66479]
[1641852583127,33.61679,135.48,135.42,27.66479]
[1641852583725,33.61679,135.48,135.44,0.9915097]
[1641852584125,33.61679,135.48,135.44,9.7e-06]
[1641852584325,4.0,135.47,135.44,9.7e-06]
[1641852584926,33.61679,135.48,135.44,9.7e-06]
[1641852585728,37.61679,135.48,135.44,9.7e-06]
[1641852586128,4.18047835,135.47,135.44,9.7e-06]
[1641852586731,4.18047835,135.47,135.42,27.66479]
[1641852588334,4.18047835,135.47,135.43,0.83607488]
[1641852588632,4.18047835,135.47,135.43,7.34907488]
[1641852589632,27.66479,135.51,135.43,7.34907488]
[1641852589832,4.18034678,135.46,135.43,7.34907488]
[1641852590832,4.18034678,135.46,135.43,0.83607488]
[1641852591835,4.18034678,135.46,135.42,27.66479]
[1641852592036,4.18034678,135.46,135.44,0.83602959]
[1641852593237,4.0,135.49,135.44,0.83602959]
[1641852593644,27.66479,135.48,135.44,0.83602959]
[1641852594140,31.66479,135.48,135.44,0.83602959]
[1641852595339,31.66479,135.48,135.42,27.66479]
[1641852595539,31.66479,135.48,135.45,0.83603539]
[1641852597039,35.84493529,135.48,135.45,0.83603539]
[1641852598142,31.84493529,135.48,135.45,0.83603539]
[1641852599043,31.84493529,135.48,135.42,27.66479]
[1641852599242,31.84493529,135.48,135.46,0.83605082]
[1641852600344,35.84493529,135.48,135.46,0.83605082]
[1641852600544,31.66479,135.48,135.46,0.83605082]
[1641852600944,4.18025314,135.47,135.46,0.83605082]
[1641852602547,4.18025314,135.47,135.42,27.66479]
[1641852604250,27.66479,135.48,135.42,27.66479]
[1641852604452,27.66479,135.48,135.42,40.8063336]
[1641852604650,27.66479,135.48,135.42,44.8063336]
[1641852604852,4.18030865,135.47,135.46,0.83606173]
[1641852608458,27.66479,135.48,135.46,2.5031515]
[1641852608658,4.18001369,135.47,135.46,2.5031515]
[1641852609359,4.18001369,135.47,135.44,17.99269885]
[1641852609559,4.18001369,135.47,135.44,21.99269885]
[1641852609758,15.48954735,135.53,135.45,9.90590494]
[1641852609959,15.48954735,135.53,135.45,19.84490494]
[1641852610160,15.48954735,135.53,135.45,18.34805644]
[1641852610560,15.48954735,135.53,135.45,22.34805644]
[1641852610759,15.48954735,135.53,135.45,18.34805644]
[1641852611163,15.48954735,135.53,135.48,9.90477406]
[1641852611363,15.48954735,135.55,135.48,18.85977406]
[1641852611761,15.48954735,135.55,135.52,27.66479]
[1641852611960,15.48954735,135.55,135.52,35.79379]
[1641852612562,43.15433735,135.59,135.52,35.79379]
[1641852613864,2.70524144,135.58,135.52,35.79379]
[1641852614663,18.19478879,135.6,135.52,35.79379]
[1641852615667,18.19478879,135.6,135.53,0.83551881]
[1641852615867,18.19478879,135.6,135.55,27.66479]
[1641852616173,18.19478879,135.6,135.55,35.04479]
[1641852616567,15.48954735,135.62,135.55,35.04479]
[1641852617670,2.70524144,135.63,135.55,35.04479]
[1641852617869,2.70524144,135.63,135.56,4.0]
[1641852619170,2.70524144,135.63,135.56,5.843]
[1641852619471,2.70524144,135.65,135.56,5.843]
[1641852619872,2.70524144,135.65,135.59,27.66479]
[1641852620075,2.70524144,135.65,135.59,36.00079]
[1641852623374,27.66479,135.66,135.59,36.00079]
[1641852623574,19.48954735,135.68,135.59,36.00079]
[1641852624175,2.68238566,135.67,135.59,36.00079]
[1641852626580,2.68238566,135.67,135.6,1.45058089]
[1641852627080,31.62932338,135.67,135.6,1.45058089]
[1641852627879,59.29411338,135.67,135.6,1.45058089]
[1641852628081,5.89749879,135.66,135.55,27.66479]
[1641852628280,4.0,135.6,135.5,1.843]
[1641852628480,4.0,135.59,135.49,15.48954735]
[1641852628682,18.05792127,135.6,135.49,15.48954735]
[1641852628884,4.0,135.55,135.49,15.48954735]
[1641852629082,4.0,135.53,135.49,15.48954735]
[1641852629481,4.0,135.54,135.49,17.97630219]
[1641852629681,13.209,135.55,135.49,2.48675484]
[1641852629882,4.0,135.54,135.49,2.48675484]
[1641852630683,4.0,135.54,135.47,27.66479]
[1641852631885,4.0,135.54,135.45,27.66479]
[1641852633084,11.054,135.55,135.45,27.66479]
[1641852633284,1.845,135.56,135.45,27.66479]
[1641852633483,31.66479,135.57,135.45,27.66479]
[1641852633685,4.17886563,135.53,135.45,27.66479]
[1641852633888,4.17886563,135.53,135.45,55.32958]
[1641852634587,4.17886563,135.53,135.45,59.32958]
[1641852634786,4.17886563,135.53,135.46,2.49053763]
[1641852635686,4.17886563,135.53,135.45,125.18538]
[1641852636891,4.17886563,135.53,135.46,2.49265027]
[1641852637091,27.66479,135.57,135.46,2.49265027]
[1641852637292,4.17854949,135.56,135.46,6.49265027]
[1641852637492,4.17854949,135.56,135.46,14.24222112]
[1641852637691,4.17854949,135.56,135.46,10.24222112]
[1641852637891,4.17854949,135.56,135.46,14.24222112]
[1641852638191,4.17854949,135.56,135.48,27.66479]
[1641852638391,4.17854949,135.56,135.48,33.57679]
[1641852638992,4.17854949,135.56,135.48,37.57679]
[1641852640395,4.17854949,135.56,135.49,2.5004525]
[1641852640993,27.66479,135.57,135.49,2.5004525]
[1641852641194,4.17829816,135.55,135.49,2.5004525]
[1641852644596,27.66479,135.57,135.49,2.5004525]
[1641852644795,15.51355194,135.59,135.49,77.2211525]
[1641852644996,15.51355194,135.59,135.52,9.90307426]
[1641852645195,15.51355194,135.59,135.53,4.0]
[1641852645394,4.17862604,135.54,135.53,4.0]
[1641852645595,15.51355194,135.59,135.53,4.0]
[1641852645796,15.51355194,135.6,135.53,4.0]
[1641852645995,15.51355194,135.6,135.56,27.66479]
[1641852646194,15.51355194,135.6,135.56,36.62579]
[1641852647001,2.69520561,135.64,135.56,36.62579]
[1641852647599,2.69520561,135.64,135.56,40.62579]
[1641852648000,2.69520561,135.64,135.59,27.66479]
[1641852648199,2.69520561,135.64,135.59,35.38779]
[1641852649500,18.20875755,135.66,135.59,35.38779]
[1641852650102,18.20875755,135.66,135.6,1.18746999]
[1641852650602,22.20875755,135.66,135.6,1.18746999]
[1641852650801,18.20875755,135.66,135.6,1.18746999]
[1641852651002,6.69520561,135.66,135.6,1.18746999]
[1641852651800,6.69520561,135.66,135.6,1.18737949]
[1641852652002,2.69520561,135.65,135.6,7.48737949]
[1641852653604,2.69520561,135.66,135.6,6.3]
[1641852654303,2.69520561,135.66,135.61,2.02317579]
[1641852656005,2.69520561,135.66,135.6,6.3]
[1641852656504,6.69520561,135.66,135.6,6.3]
[1641852656706,4.0,135.65,135.6,6.3]
[1641852656907,4.0,135.65,135.56,27.66479]
[1641852657512,4.0,135.62,135.56,27.66479]
[1641852657709,7.958,135.62,135.52,22.59735279]
[1641852657908,7.958,135.62,135.52,7.08380085]
[1641852658110,7.958,135.62,135.53,27.66479]
[1641852658711,7.958,135.62,135.61,2.02318426]
[1641852659713,11.958,135.62,135.61,2.02318426]
[1641852659915,7.958,135.62,135.61,2.02318426]
[1641852660413,7.958,135.62,135.61,1e-08]
[1641852660615,11.958,135.62,135.61,1e-08]
[1641852660814,7.958,135.62,135.61,1e-08]
[1641852662218,11.958,135.62,135.53,27.66479]
[1641852662419,4.0,135.61,135.54,2.02412017]
[1641852663317,4.0,135.6,135.54,2.02412017]
[1641852664119,31.66479,135.6,135.54,2.02412017]
[1641852665022,4.0,135.59,135.54,2.02412017]
[1641852665224,10.761,135.59,135.54,2.02412017]
[1641852665420,6.761,135.59,135.54,2.02412017]
[1641852665921,6.761,135.59,135.53,27.66479]
[1641852666320,6.761,135.59,135.55,2.0042078]
[1641852666921,27.66479,135.6,135.55,2.0042078]
[1641852667121,5.89934714,135.61,135.55,2.0042078]
[1641852667520,10.07601907,135.62,135.55,2.0042078]
[1641852667521,29.50779,135.63,135.55,9.8212078]
[1641852667721,4.17733544,135.59,135.55,9.8212078]
[1641852668122,4.17733544,135.59,135.57,27.66479]
[1641852670325,4.17733544,135.59,135.56,1.80188064]
[1641852670527,10.24533544,135.59,135.56,1.80188064]
[1641852671425,6.068,135.59,135.56,1.80188064]
[1641852671626,4.17679301,135.58,135.56,1.80188064]
[1641852672227,4.17679301,135.58,135.56,29.46667064]
[1641852673030,31.66479,135.67,135.57,4.0]
[1641852673231,31.66479,135.67,135.57,12.958]
[1641852674030,31.66479,135.67,135.58,1.59928845]
[1641852675036,27.66479,135.67,135.58,1.59928845]
[1641852675934,70.1974,135.72,135.59,4.0]
[1641852676135,14.86,135.72,135.63,27.66479]
[1641852676335,20.87707088,135.71,135.63,35.78779]
[1641852676938,4.0,135.72,135.63,35.78779]
[1641852677738,36.15277107,135.73,135.63,35.78779]
[1641852677938,27.66479,135.73,135.63,35.78779]
[1641852678738,31.66479,135.73,135.63,35.78779]
[1641852679939,27.66479,135.73,135.63,35.78779]
[1641852680140,13.67786705,135.71,135.63,35.78779]
[1641852682145,13.67786705,135.71,135.66,27.66479]
[1641852683446,13.67786705,135.71,135.66,36.96079]
[1641852683646,15.65316039,135.69,135.66,36.96079]
[1641852685949,15.65316039,135.69,135.67,2.47399754]
[1641852686751,2.70781367,135.7,135.67,2.47399754]
[1641852686950,2.70781367,135.7,135.67,4.31599754]
[1641852687150,2.70781367,135.7,135.67,8.31599754]
[1641852688250,2.70781367,135.7,135.69,27.66479]
[1641852688451,2.70781367,135.7,135.69,33.32979]
[1641852690053,41.74176105,135.72,135.69,33.32979]
[1641852690252,41.74176105,135.74,135.69,33.32979]
[1641852691953,41.74176105,135.74,135.69,5.665]
[1641852692155,41.74176105,135.74,135.68,2.47371115]
[1641852692354,27.66479,135.73,135.68,2.47371115]
[1641852692553,33.44279,135.73,135.68,2.47371115]
[1641852693153,33.44279,135.73,135.66,27.66479]
[1641852693654,33.44279,135.73,135.69,2.47340263]
[1641852693854,27.66479,135.73,135.69,2.47340263]
[1641852694953,27.66479,135.73,135.66,27.66479]
[1641852694954,4.0,135.72,135.66,27.66479]
[1641852695154,4.0,135.71,135.63,35.91779]
[1641852695853,4.0,135.7,135.63,35.91779]
[1641852696453,31.66479,135.7,135.63,35.91779]
[1641852696953,2.70781367,135.69,135.63,35.91779]
[1641852697156,2.70781367,135.69,135.63,27.66479]
[1641852697957,6.70781367,135.69,135.63,27.66479]
[1641852698158,4.0,135.65,135.57,41.74176105]
[1641852698358,4.0,135.64,135.57,41.74176105]
[1641852698558,31.66479,135.64,135.55,69.40655105]
[1641852699058,27.66479,135.64,135.55,69.40655105]
[1641852699660,2.70781367,135.63,135.56,2.50420898]
[1641852700762,6.70781367,135.63,135.56,2.50420898]
[1641852700963,4.0,135.61,135.56,2.50420898]
[1641852701162,13.246,135.61,135.56,2.50420898]
[1641852701763,4.0,135.59,135.56,2.50420898]
[1641852702063,4.0,135.59,135.54,2.50420898]
[1641852702263,11.09,135.61,135.54,2.50420898]
[1641852702665,38.75479,135.61,135.54,2.50420898]
[1641852703269,42.75479,135.61,135.54,2.50420898]
[1641852703567,38.75479,135.61,135.54,2.50420898]
[1641852704266,38.75479,135.61,135.53,27.66479]
[1641852704468,40.91079,135.61,135.53,27.66479]
[1641852704668,36.91079,135.61,135.53,27.66479]
[1641852704867,1.844,135.63,135.53,31.66479]
[1641852705068,27.66479,135.64,135.53,38.65079]
[1641852705268,27.66479,135.64,135.54,4.0]
[1641852705669,27.66479,135.64,135.53,54.65079]
[1641852705868,4.17705455,135.58,135.54,4.0]
[1641852706269,4.17705455,135.58,135.53,128.15819]
[1641852706672,4.17705455,135.58,135.56,27.66479]
[1641852706972,4.17705455,135.58,135.56,35.60379]
[1641852708273,5.455e-05,135.58,135.56,35.60379]
[1641852709076,27.66479,135.66,135.56,35.60379]
[1641852709277,31.66479,135.66,135.56,35.60379]
[1641852709475,27.66479,135.66,135.56,39.60379]
[1641852710276,27.66479,135.66,135.56,35.60379]
[1641852710775,27.66479,135.66,135.56,63.26858]
[1641852712980,4.17598689,135.65,135.56,63.26858]
[1641852714684,4.17598689,135.65,135.59,27.66479]
[1641852714883,4.17598689,135.65,135.59,34.26579]
[1641852716389,27.66479,135.66,135.59,34.26579]
[1641852716888,4.1757754,135.64,135.59,34.26579]
[1641852717687,8.1757754,135.64,135.59,34.26579]
[1641852717889,8.1757754,135.64,135.59,6.601]
[1641852718091,4.0,135.63,135.56,27.66479]
[1641852718589,4.0,135.62,135.56,27.66479]
[1641852718790,33.56345605,135.63,135.6,2.83295623]
[1641852718990,5.89985686,135.6,135.56,27.66479]
[1641852719189,4.0,135.59,135.56,27.66479]
[1641852719590,9.89985686,135.6,135.56,27.66479]
[1641852720391,5.89985686,135.6,135.56,27.66479]
[1641852720591,31.84080714,135.63,135.56,35.51479]
[1641852721393,35.84080714,135.63,135.56,35.51479]
[1641852722291,35.84080714,135.63,135.57,2.83406354]
[1641852723491,31.84080714,135.63,135.57,2.83406354]
[1641852723691,31.84080714,135.63,135.52,27.66479]
[1641852723692,4.0,135.59,135.52,27.66479]
[1641852723893,4.0,135.58,135.52,43.21554648]
[1641852724092,7.007,135.59,135.52,15.55075648]
[1641852724392,11.007,135.59,135.52,15.55075648]
[1641852724792,11.007,135.59,135.52,2.50060164]
[1641852724992,4.0,135.59,135.52,2.50060164]
[1641852725595,4.0,135.59,135.57,2.23892155]
[1641852725796,33.56453128,135.6,135.57,2.23892155]
[1641852725995,27.66479,135.6,135.57,2.23892155]
[1641852728195,4.17736134,135.58,135.57,2.23892155]
[1641852729298,4.17736134,135.58,135.51,108.39375648]
[1641852729996,4.17736134,135.58,135.52,28.19680224]
[1641852730197,4.17736134,135.58,135.52,35.75880224]
[1641852730796,4.17736134,135.58,135.55,27.66479]
[1641852730996,4.17736134,135.58,135.55,34.26079]
[1641852731596,27.66479,135.63,135.56,2.50317982]
[1641852731798,4.17734686,135.59,135.56,2.50317982]
[1641852732300,4.17734686,135.59,135.57,1.64444163]
[1641852734102,4.686e-05,135.59,135.57,1.64444163]
[1641852734803,4.686e-05,135.59,135.58,27.66479]
[1641852735002,4.686e-05,135.59,135.58,35.09579]
[1641852735202,18.24933097,135.65,135.58,35.09579]
[1641852735901,18.24933097,135.65,135.58,36.7396136]
[1641852737101,18.24933097,135.65,135.58,64.4044036]
[1641852737804,15.55075648,135.66,135.58,64.4044036]
[1641852739407,15.55075648,135.66,135.59,2.52068155]
[1641852739607,15.55075648,135.65,135.59,2.52068155]
[1641852740308,15.55075648,135.66,135.59,2.52068155]
[1641852741108,15.55075648,135.65,135.59,2.52068155]
[1641852743217,15.55075648,135.66,135.6,2.52051215]
[1641852746625,15.55075648,135.66,135.58,62.76058]
[1641852746826,18.24933097,135.67,135.58,62.76058]
[1641852747025,18.24933097,135.67,135.61,2.52028691]
[1641852747225,18.24933097,135.67,135.61,8.56728691]
[1641852750226,18.24933097,135.67,135.61,6.047]
[1641852750730,4.17548502,135.66,135.62,2.51982844]
[1641852751527,2.69857449,135.65,135.62,2.51982844]
[1641852754432,16.10557449,135.65,135.58,27.66479]
[1641852754731,6.2644682,135.61,135.58,27.66479]
[1641852754934,8.041,135.61,135.58,27.66479]
[1641852756734,38.74310065,135.63,135.58,27.66479]
[1641852757534,2.69975182,135.62,135.58,27.66479]
[1641852759239,4.17661129,135.6,135.59,1.99177766]
[1641852762746,49.11415721,135.63,135.58,27.66479]
[1641852762948,4.17670613,135.6,135.59,1.99187087]
[1641852765951,5.89920961,135.62,135.58,27.66479]
[1641852766649,4.17654986,135.6,135.59,1.99171728]
[1641852770156,5.89925573,135.62,135.56,27.66479]
[1641852770356,4.17648113,135.6,135.59,1.99164973]
[1641852773957,4.17645954,135.6,135.59,1.99161424]
[1641852777369,27.66479,135.63,135.56,31.66479]
[1641852777662,4.17644285,135.62,135.59,1.99159783]
[1641852779064,2.70242608,135.61,135.59,1.99159783]
[1641852780865,2.70242608,135.61,135.56,27.66479]
[1641852781069,2.70242608,135.61,135.57,1.99162389]
[1641852784472,2.70242608,135.61,135.56,27.66479]
[1641852784673,4.17673657,135.6,135.58,1.99188653]
[1641852786278,8.17673657,135.6,135.59,2.50997103]
[1641852786479,14.07678991,135.6,135.56,15.55075648]
[1641852786679,14.07678991,135.6,135.53,41.74176105]
[1641852786680,55.32958,135.57,135.53,41.74176105]
[1641852786882,66.82058,135.57,135.53,41.74176105]
[1641852787079,4.0,135.56,135.52,10.17163506]
[1641852787280,66.82058,135.57,135.52,10.17163506]
[1641852787781,62.82058,135.57,135.52,10.17163506]
[1641852788282,62.82058,135.57,135.48,6.538]
[1641852788482,55.32958,135.57,135.48,12.382]
[1641852788682,55.32958,135.57,135.5,27.66479]
[1641852790484,27.66479,135.57,135.5,27.66479]
[1641852790886,27.66479,135.57,135.5,98.54709]
[1641852791485,27.66479,135.57,135.5,27.66479]
[1641852792086,4.177757,135.56,135.5,27.66479]
[1641852795892,4.17819776,135.55,135.5,27.66479]
[1641852796094,4.17819776,135.55,135.5,31.66479]
[1641852796293,4.17819776,135.55,135.5,27.66479]
[1641852798394,4.17819776,135.55,135.5,31.66479]
[1641852798593,4.17819776,135.55,135.5,27.66479]
[1641852799594,27.66479,135.57,135.5,27.66479]
[1641852800495,4.1780823,135.54,135.5,27.66479]
[1641852801298,4.1780823,135.54,135.5,31.66479]
[1641852801596,27.66479,135.57,135.5,31.66479]
[1641852801597,5.90015279,135.59,135.5,31.66479]
[1641852802597,5.90015279,135.59,135.5,59.32958]
[1641852802798,5.90015279,135.59,135.52,4.0]
[1641852803399,27.66479,135.62,135.52,9.90308666]
[1641852803597,27.66479,135.62,135.53,67.132]
[1641852804701,27.66479,135.62,135.54,27.66479]
[1641852805500,31.66479,135.62,135.54,27.66479]
[1641852806403,4.1772685,135.58,135.54,27.66479]
[1641852807704,4.1772685,135.58,135.54,30.11616704]
[1641852809906,31.66479,135.62,135.54,30.11616704]
[1641852810108,4.17670317,135.57,135.54,30.11616704]
[1641852811308,4.17670317,135.57,135.55,2.45059574]
[1641852811708,41.74176105,135.65,135.56,4.0]
[1641852811909,41.74176105,135.65,135.59,4.0]
[1641852812211,41.74176105,135.65,135.59,10.843]
[1641852812408,41.74176105,135.65,135.61,4.0]
[1641852812807,41.74176105,135.65,135.62,27.66479]